bitfinex/quotes_SOLUSD_20260105
["timestamp","ask_amount","ask_price","bid_price","bid_amount"]
[1767609438449,4.31785813,135.24,135.19,0.69851207]
[1767609438864,11.71223056,135.24,135.19,0.69851207]
[1767609439050,11.02404326,135.24,135.19,0.69851207]
[1767609439260,3.33174391,135.23,135.18,0.69851207]
[1767609439454,0.6881873,135.21,135.16,14.17851207]
[1767609439654,0.6881873,135.23,135.17,0.69851207]
[1767609439868,0.6881873,135.23,135.18,0.69851207]
[1767609440251,4.01993121,135.23,135.18,0.69851207]
[1767609440773,3.33174391,135.23,135.19,0.69851207]
[1767609440973,7.39482161,135.23,135.19,0.69851207]
[1767609441145,10.72656552,135.23,135.19,0.69851207]
[1767609441478,0.29792692,135.24,135.2,0.69851207]
[1767609441772,0.29792692,135.24,135.2,14.17851207]
[1767609441967,0.6881873,135.26,135.22,0.69851207]
[1767609441968,10.72511686,135.26,135.22,0.69851207]
[1767609442271,8.08156025,135.26,135.22,0.69851207]
[1767609442460,3.33174391,135.25,135.22,0.69851207]
[1767609442776,10.72592263,135.25,135.22,0.69851207]
[1767609443178,7.39417872,135.25,135.22,0.69851207]
[1767609443352,10.72592263,135.25,135.22,0.69851207]
[1767609443954,7.39417872,135.25,135.22,0.69851207]
[1767609445241,0.6881873,135.24,135.17,0.43914897]
[1767609445446,0.6881873,135.24,135.16,13.48]
[1767609445447,0.6881873,135.22,135.16,13.48]
[1767609445748,0.6881873,135.18,135.13,0.43914897]
[1767609445949,0.6881873,135.23,135.16,0.43914897]
[1767609446169,3.33174391,135.21,135.16,7.8377658]
[1767609446373,0.6881873,135.22,135.16,7.8377658]
[1767609446556,8.86443028,135.21,135.16,0.43914897]
[1767609446864,8.86443028,135.2,135.16,0.43914897]
[1767609447074,62.84704377,135.25,135.15,13.48]
[1767609447075,8.86443028,135.18,135.15,13.48]
[1767609447249,8.86443028,135.18,135.14,0.43914897]
[1767609447250,8.08617793,135.18,135.14,0.43914897]
[1767609447668,0.6881873,135.17,135.12,0.43914897]
[1767609447882,0.6881873,135.16,135.1,0.43914897]
[1767609448063,8.86443028,135.15,135.1,13.91914897]
[1767609448386,9.55261758,135.13,135.08,13.91914897]
[1767609448558,0.6881873,135.15,135.09,9.30357925]
[1767609448749,8.86443028,135.16,135.11,0.43914897]
[1767609448946,0.6881873,135.16,135.11,0.43914897]
[1767609449162,9.55261758,135.16,135.11,0.43914897]
[1767609449380,16.95147992,135.16,135.11,0.43914897]
[1767609449585,0.6881873,135.14,135.1,13.48]
[1767609449770,9.55261758,135.13,135.08,13.48]
[1767609449958,0.6881873,135.13,135.08,13.48]
[1767609450272,9.55261758,135.13,135.08,13.48]
[1767609450570,0.6881873,135.15,135.1,9.30357925]
[1767609450768,0.6881873,135.15,135.1,22.78357925]
[1767609450976,16.93320183,135.16,135.11,9.30357925]
[1767609451184,16.93320183,135.16,135.11,0.43914897]
[1767609451587,8.86443028,135.13,135.1,13.48]
[1767609451750,9.53433949,135.13,135.1,13.48]
[1767609451951,0.66990921,135.12,135.07,30.18661595]
[1767609452384,0.66990921,135.12,135.08,7.4029641]
[1767609453171,0.66990921,135.12,135.07,22.78357925]
[1767609453360,8.07074587,135.12,135.07,13.91914897]
[1767609453688,0.66990921,135.12,135.07,30.18700161]
[1767609454163,0.66990921,135.12,135.08,0.43914897]
[1767609454555,0.66990921,135.14,135.09,0.43914897]
[1767609454875,0.66990921,135.14,135.09,9.30357925]
[1767609455078,0.66990921,135.14,135.1,0.43914897]
[1767609455682,16.93411174,135.14,135.1,0.43914897]
[1767609455980,16.26420253,135.14,135.1,0.43914897]
[1767609456185,8.86443028,135.14,135.1,0.43914897]
[1767609456358,8.86443028,135.14,135.1,7.84103944]
[1767609456559,16.93368165,135.15,135.1,7.84103944]
[1767609456760,0.66990921,135.15,135.1,7.84103944]
[1767609456984,0.66990921,135.15,135.11,0.43914897]
[1767609457162,16.93290314,135.17,135.12,0.43914897]
[1767609457361,8.86443028,135.16,135.12,0.43914897]
[1767609457682,8.06752877,135.18,135.12,0.43914897]
[1767609457887,16.93097507,135.2,135.15,9.30357925]
[1767609458051,16.93097507,135.2,135.15,0.43914897]
[1767609458760,8.86443028,135.19,135.15,0.43914897]
[1767609458961,8.06654479,135.2,135.15,0.43914897]
[1767609459182,16.93097507,135.2,135.15,0.43914897]
[1767609459496,16.93097507,135.2,135.15,13.91914897]
[1767609459654,0.66990921,135.2,135.15,30.18240463]
[1767609459849,16.93084642,135.2,135.15,22.78357925]
[1767609460476,0.66990921,135.19,135.15,9.30357925]
[1767609460674,0.66990921,135.19,135.17,8.86443028]
[1767609461180,8.06641614,135.2,135.17,8.86443028]
[1767609461675,8.06641614,135.2,135.18,8.86443028]
[1767609461875,0.66990921,135.2,135.18,8.86443028]
[1767609462079,0.66990921,135.2,135.19,8.86443028]
[1767609462265,8.06597139,135.21,135.19,8.86443028]
[1767609462979,8.06597139,135.21,135.16,7.83773656]
[1767609462980,8.06597139,135.21,135.18,8.86443028]
[1767609464556,0.66990921,135.2,135.16,13.91914897]
[1767609464763,0.66990921,135.2,135.18,8.86443028]
[1767609465264,8.06597139,135.21,135.18,8.86443028]
[1767609465465,0.66990921,135.21,135.19,8.86443028]
[1767609465664,7.39556289,135.22,135.19,8.86443028]
[1767609465860,8.0654721,135.22,135.19,8.86443028]
[1767609466060,0.66990921,135.21,135.19,8.86443028]
[1767609466469,0.66990921,135.23,135.19,3.3400467]
[1767609466675,0.66990921,135.22,135.2,3.3400467]
[1767609467089,7.39495743,135.23,135.2,3.3400467]
[1767609467090,8.06486664,135.23,135.2,3.3400467]
[1767609467980,8.06486664,135.23,135.18,13.91914897]
[1767609468171,8.06486664,135.23,135.2,3.3400467]
[1767609469684,8.06486664,135.23,135.18,13.91914897]
[1767609469880,8.06486664,135.23,135.19,3.3400467]
[1767609470477,0.66990921,135.22,135.19,3.3400467]
[1767609470788,8.06486664,135.23,135.19,3.3400467]
[1767609471573,8.06486664,135.23,135.2,3.3400467]
[1767609472479,1.83899998,135.24,135.21,3.3400467]
[1767609472667,1.83899998,135.24,135.22,3.3400467]
[1767609473484,8.0709741,135.26,135.23,3.3400467]
[1767609473687,0.67771816,135.26,135.25,3.3400467]
[1767609473889,8.06998807,135.28,135.25,3.3400467]
[1767609474481,0.67771816,135.3,135.25,0.43914897]
[1767609474685,0.67771816,135.31,135.29,3.3400467]
[1767609474890,0.67771816,135.31,135.25,7.39364814]
[1767609475078,0.67771816,135.31,135.29,3.3400467]
[1767609475280,7.39012531,135.32,135.27,0.67488344]
[1767609475590,7.39012531,135.32,135.28,0.67488344]
[1767609475772,7.81836286,135.33,135.29,0.67488344]
[1767609476165,26.29172427,135.33,135.29,0.67488344]
[1767609476669,29.63177097,135.33,135.28,4.01493014]
[1767609477486,26.29172427,135.33,135.28,4.01493014]
[1767609477890,26.29172427,135.33,135.29,0.67488344]
[1767609478479,26.29172427,135.33,135.29,9.52269818]
[1767609478480,7.81836286,135.33,135.29,9.52269818]
[1767609478675,7.81836286,135.33,135.29,0.67488344]
[1767609478878,8.06650411,135.35,135.3,9.52269818]
[1767609479492,26.5371358,135.35,135.3,9.52269818]
[1767609480293,7.38878595,135.35,135.31,9.52269818]
[1767609480485,0.67522899,135.34,135.31,8.84781474]
[1767609480681,0.67522899,135.34,135.32,8.84781474]
[1767609481196,7.80724329,135.35,135.32,8.84781474]
[1767609481722,8.07548313,135.37,135.34,8.84781474]
[1767609482402,7.38731629,135.37,135.33,9.5715054]
[1767609482586,8.17481261,135.38,135.34,0.72369066]
[1767609482905,0.1,135.38,135.35,6.16453086]
[1767609483087,0.1,135.38,135.36,0.69369066]
[1767609483288,7.48661635,135.38,135.36,0.66513533]
[1767609483480,7.48661635,135.38,135.35,5.4408402]
[1767609484183,7.48661635,135.38,135.33,7.38927626]
[1767609484390,7.48661635,135.38,135.34,5.4408402]
[1767609485291,0.68397417,135.36,135.31,13.48]
[1767609485481,0.68397417,135.36,135.32,0.72369066]
[1767609485881,0.68397417,135.36,135.32,6.16453086]
[1767609486481,8.07209769,135.36,135.32,6.16453086]
[1767609486879,7.4867326,135.38,135.34,0.72369066]
[1767609487080,7.4867326,135.38,135.33,5.4408402]
[1767609487081,0.1,135.38,135.35,6.16453086]
[1767609487506,0.1,135.38,135.36,5.4408402]
[1767609487995,7.48673258,135.38,135.35,6.16453086]
[1767609488506,7.48673258,135.38,135.35,5.4408402]
[1767609489477,7.38571637,135.4,135.37,0.72369066]
[1767609489677,0.57542712,135.42,135.37,6.16453086]
[1767609489880,8.07214941,135.41,135.37,0.72369066]
[1767609490085,8.07214941,135.41,135.36,0.72369066]
[1767609490086,0.57654325,135.4,135.36,0.72369066]
[1767609490281,0.57654325,135.4,135.35,6.16453086]
[1767609490608,6.01738345,135.4,135.35,0.72369066]
[1767609490907,0.68593447,135.39,135.35,6.16453086]
[1767609491410,7.38661545,135.38,135.35,5.4408402]
[1767609492401,7.38661545,135.38,135.35,6.16453086]
[1767609492605,7.38661545,135.38,135.35,5.4408402]
[1767609492811,7.96425262,135.38,135.35,5.4408402]
[1767609493220,7.96425262,135.38,135.34,19.64453086]
[1767609493704,7.96425262,135.38,135.35,5.4408402]
[1767609494783,7.386298,135.39,135.35,0.72369066]
[1767609495091,7.9606234,135.41,135.37,6.16453086]
[1767609495287,0.68703944,135.4,135.37,5.4408402]
[1767609495800,8.07266131,135.4,135.37,5.4408402]
[1767609496177,8.07266131,135.4,135.36,0.72369066]
[1767609496714,0.57654325,135.39,135.35,0.72369066]
[1767609497018,0.57654325,135.39,135.34,18.9208402]
[1767609497600,0.57654325,135.39,135.34,19.64453086]
[1767609497809,7.38661545,135.38,135.34,19.64453086]
[1767609497987,0.68816684,135.4,135.35,0.72369066]
[1767609498192,0.68816684,135.4,135.34,18.9208402]
[1767609498193,7.96055737,135.41,135.37,5.4408402]
[1767609498397,7.96055737,135.41,135.37,6.16453086]
[1767609498606,8.0727083,135.42,135.38,6.16453086]
[1767609499515,0.57542712,135.41,135.38,5.4408402]
[1767609499883,7.96054943,135.41,135.38,5.4408402]
[1767609500426,7.38398152,135.43,135.4,5.4408402]
[1767609500579,7.38398152,135.43,135.41,5.4408402]
[1767609501404,7.38398152,135.43,135.41,6.16453086]
[1767609501604,7.38398152,135.43,135.41,5.4408402]
[1767609501819,0.1,135.44,135.42,5.4408402]
[1767609502005,0.68816684,135.49,135.44,0.72369066]
[1767609502189,8.06886816,135.49,135.45,5.4408402]
[1767609502511,0.67442712,135.48,135.44,6.16453086]
[1767609502693,0.67442712,135.48,135.45,5.4408402]
[1767609502899,8.06841258,135.5,135.46,6.16453086]
[1767609503319,0.67442712,135.49,135.46,5.4408402]
[1767609503998,0.78816684,135.51,135.46,5.4408402]
[1767609504196,8.16761478,135.51,135.48,5.4408402]
[1767609504402,8.16761478,135.51,135.47,6.16453086]
[1767609504904,8.16761478,135.51,135.48,0.72369066]
[1767609504905,7.47958534,135.51,135.48,0.72369066]
[1767609505409,8.16761478,135.51,135.47,6.16453086]
[1767609505711,7.47958534,135.51,135.47,6.16453086]
[1767609506393,7.47958534,135.51,135.47,0.72369066]
[1767609506587,0.77456315,135.51,135.46,20.8420641]
[1767609506802,0.77456315,135.51,135.49,5.4408402]
[1767609506803,0.1,135.51,135.49,5.4408402]
[1767609507011,0.1,135.51,135.48,0.72369066]
[1767609507389,0.1,135.51,135.48,6.16453086]
[1767609507601,0.1,135.51,135.48,0.72369066]
[1767609507801,0.78802944,135.51,135.47,6.16453086]
[1767609508291,8.16765861,135.51,135.47,6.16453086]
[1767609508491,0.78802944,135.51,135.47,6.16453086]
[1767609508792,0.1,135.51,135.49,5.4408402]
[1767609509002,0.1,135.51,135.48,0.72369066]
[1767609509192,0.1,135.51,135.48,6.16453086]
[1767609509514,0.1,135.51,135.49,5.4408402]
[1767609510129,0.1,135.51,135.48,0.72369066]
[1767609510419,0.1,135.51,135.5,6.16453086]
[1767609510729,8.06501459,135.56,135.53,5.4408402]
[1767609511213,0.69670261,135.54,135.49,14.15171928]
[1767609511520,0.69670261,135.54,135.5,0.69171928]
[1767609512092,6.13754281,135.54,135.5,0.69171928]
[1767609512419,8.07409077,135.55,135.5,6.13255948]
[1767609512603,0.69670261,135.57,135.53,5.4408402]
[1767609512807,0.69670261,135.57,135.53,6.13255948]
[1767609513207,0.69670261,135.57,135.52,18.9008402]
[1767609513392,0.69670261,135.57,135.52,19.59255948]
[1767609513605,8.07350992,135.56,135.52,0.69171928]
[1767609513907,0.69670261,135.56,135.52,6.13255948]
[1767609514224,7.37621762,135.58,135.53,6.13255948]
[1767609514225,8.07292023,135.58,135.53,6.13255948]
[1767609514394,8.07292023,135.58,135.54,5.4408402]
[1767609514395,0.69670261,135.58,135.54,5.4408402]
[1767609514595,0.69670261,135.58,135.53,2.81816583]
[1767609514812,8.07255063,135.58,135.53,2.81816583]
[1767609515031,8.07255063,135.58,135.5,18.44922487]
[1767609515032,0.69670261,135.58,135.54,0.69171928]
[1767609515593,2.12644655,135.6,135.54,10.19604094]
[1767609515794,0.69670261,135.6,135.55,2.81816583]
[1767609516033,0.69670261,135.59,135.55,2.81816583]
[1767609516201,0.69670261,135.59,135.55,0.69171928]
[1767609517520,8.07222035,135.59,135.55,0.69171928]
[1767609518020,0.69670261,135.57,135.53,13.46]
[1767609518314,0.69670261,135.57,135.53,14.15171928]
[1767609518522,6.12303854,135.57,135.53,14.15171928]
[1767609520423,12.80314324,135.56,135.53,14.15171928]
[1767609521296,0.69670261,135.55,135.53,13.46]
[1767609521503,6.12303854,135.55,135.51,14.15171928]
[1767609522112,5.42633593,135.54,135.51,0.69171928]
[1767609522413,7.37844019,135.53,135.51,0.69171928]
[1767609522612,7.37844019,135.53,135.49,14.15171928]
[1767609522822,7.37844019,135.53,135.5,0.69171928]
[1767609523407,12.80477612,135.53,135.5,0.69171928]
[1767609523999,13.50147873,135.53,135.49,13.46]
[1767609524200,5.42633593,135.52,135.49,13.46]
[1767609524594,6.12303854,135.52,135.49,13.46]
[1767609524795,5.42633593,135.5,135.46,14.15171928]
[1767609524995,6.12303854,135.51,135.47,0.69171928]
[1767609525810,12.80640973,135.5,135.47,0.69171928]
[1767609526011,13.50311234,135.5,135.47,0.69171928]
[1767609526193,13.50311234,135.5,135.46,13.46]
[1767609526194,13.50311234,135.5,135.46,14.15171928]
[1767609526400,5.42633593,135.49,135.46,0.69171928]
[1767609526808,6.12303854,135.49,135.45,13.46]
[1767609527117,5.42633593,135.48,135.45,13.46]
[1767609527322,5.42633593,135.48,135.44,0.69171928]
[1767609527504,5.42633593,135.48,135.44,14.15171928]
[1767609528304,13.50419004,135.49,135.44,14.15171928]
[1767609529016,0.69670261,135.48,135.44,14.15171928]
[1767609529323,8.07623179,135.51,135.45,0.69171928]
[1767609529622,13.50256772,135.51,135.45,0.69171928]
[1767609530116,13.50256772,135.51,135.46,0.69171928]
[1767609530625,25.8188256,135.56,135.48,0.69171928]
[1767609530814,25.8188256,135.56,135.49,0.69171928]
[1767609531126,0.69670261,135.55,135.49,0.69171928]
[1767609531433,5.42633593,135.53,135.49,0.69171928]
[1767609532002,7.37952918,135.51,135.49,0.69171928]
[1767609532310,7.37920695,135.52,135.49,0.69171928]
[1767609532516,12.80554288,135.52,135.49,0.69171928]
[1767609534412,13.51831748,135.52,135.48,0.6690899]
[1767609537915,13.51918433,135.5,135.46,0.6690899]
[1767609538435,8.0928484,135.5,135.46,0.6690899]
[1767609538736,13.51918433,135.5,135.46,0.6690899]
[1767609538910,0.7127746,135.49,135.46,0.6690899]
[1767609539328,0.7127746,135.49,135.45,14.1290899]
[1767609539520,0.7127746,135.48,135.45,13.46]
[1767609539831,5.42633593,135.48,135.45,14.1290899]
[1767609540229,12.80761415,135.48,135.45,14.1290899]
[1767609540432,13.52038875,135.48,135.45,13.46]
[1767609540631,0.67873826,135.47,135.45,13.46]
[1767609540833,0.61873827,135.47,135.45,13.46]
[1767609542526,0.61873827,135.47,135.43,0.6690899]
[1767609543223,8.00044985,135.47,135.43,0.6690899]
[1767609543734,7.38171158,135.47,135.43,0.6690899]
[1767609544241,16.21161273,135.47,135.43,0.6690899]
[1767609544432,16.89035099,135.47,135.43,0.6690899]
[1767609544634,11.38888158,135.47,135.43,0.6690899]
[1767609545030,0.67873826,135.48,135.43,0.6690899]
[1767609545217,8.05849846,135.51,135.46,0.67827329]
[1767609545417,8.05849846,135.51,135.47,0.67827329]
[1767609545418,7.3797602,135.51,135.47,0.67827329]
[1767609545740,7.3797602,135.51,135.48,0.67827329]
[1767609546236,11.3863766,135.52,135.48,0.67827329]
[1767609547319,11.3863766,135.52,135.42,0.67827329]
[1767609547320,0.67873826,135.48,135.42,0.67827329]
[1767609547518,3.32843174,135.45,135.4,0.67827329]
[1767609547922,3.32843174,135.45,135.41,0.67827329]
[1767609548122,3.32843174,135.46,135.41,0.67827329]
[1767609548844,10.71084554,135.46,135.41,0.67827329]
[1767609549038,18.4543074,135.47,135.41,0.67827329]
[1767609549039,7.38190826,135.47,135.41,0.67827329]
[1767609549237,3.32843174,135.46,135.41,0.67827329]
[1767609549539,3.32843174,135.46,135.42,0.67827329]
[1767609550048,10.71106723,135.46,135.42,0.67827329]
[1767609554055,11.37502866,135.46,135.42,0.67827329]
[1767609554427,3.32843174,135.45,135.42,0.67827329]
[1767609554645,0.6785905,135.45,135.41,0.67827329]
[1767609554844,3.32843174,135.43,135.41,0.67827329]
[1767609555149,10.71229699,135.44,135.41,0.67827329]
[1767609556436,11.37640471,135.44,135.4,0.67827329]
[1767609556639,16.88283086,135.44,135.4,0.67827329]
[1767609557048,16.89741556,135.43,135.39,14.13827329]
[1767609558251,16.89741556,135.43,135.39,0.67827329]
[1767609559027,8.83485789,135.42,135.39,0.67827329]
[1767609560235,8.06255767,135.43,135.39,0.67827329]
[1767609560550,8.83485789,135.42,135.39,0.67827329]
[1767609561356,16.21931814,135.42,135.39,0.67827329]
[1767609561962,16.21931814,135.42,135.37,20.84713184]
[1767609561963,8.83485789,135.41,135.38,0.67827329]
[1767609562137,9.51316161,135.41,135.37,14.13827329]
[1767609563359,7.38552437,135.4,135.37,14.13827329]
[1767609563671,35.34858482,135.4,135.36,0.67827329]
[1767609563866,8.83485789,135.39,135.36,0.67827329]
[1767609564171,35.34858482,135.4,135.36,0.67827329]
[1767609564736,16.88477389,135.4,135.36,0.67827329]
[1767609567339,8.049916,135.4,135.36,0.67827329]
[1767609567551,16.88477389,135.4,135.36,0.67827329]
[1767609567963,16.22099393,135.39,135.36,0.67827329]
[1767609568340,8.83485789,135.39,135.36,0.67827329]
[1767609568540,16.8850049,135.4,135.36,0.67827329]
[1767609571966,7.38513768,135.41,135.37,0.69373527]
[1767609572171,16.92410857,135.42,135.37,0.69373527]
[1767609572469,8.83485789,135.41,135.37,0.69373527]
[1767609573046,16.92410857,135.42,135.37,0.69373527]
[1767609573262,16.92410857,135.42,135.38,0.69373527]
[1767609573460,0.70462813,135.42,135.38,0.69373527]
[1767609573768,9.53882305,135.41,135.38,0.69373527]
[1767609573946,9.53882305,135.41,135.37,0.69373527]
[1767609574140,9.53882305,135.41,135.37,14.15373527]
[1767609574562,0.70396516,135.41,135.37,14.15373527]
[1767609574763,0.70396516,135.41,135.38,0.69373527]
[1767609575263,16.21950821,135.42,135.38,0.69373527]
[1767609575264,16.92413634,135.42,135.38,0.69373527]
[1767609576572,11.42018786,135.42,135.38,0.69373527]
[1767609577372,7.38408863,135.43,135.38,0.69373527]
[1767609577557,10.71499804,135.43,135.38,0.69373527]
[1767609577763,0.63833046,135.45,135.39,0.69373527]
[1767609577952,3.33090941,135.44,135.41,0.69373527]
[1767609578457,8.02121585,135.45,135.41,0.69373527]
[1767609578666,3.33090941,135.44,135.41,0.69373527]
[1767609580466,3.33090941,135.43,135.41,0.69373527]
[1767609584482,8.02121585,135.45,135.41,0.69373527]
[1767609584673,3.33090941,135.43,135.41,0.69373527]
[1767609585795,3.33090941,135.44,135.41,0.69373527]
[1767609585998,3.33090941,135.43,135.41,0.69373527]
[1767609586688,8.02121585,135.45,135.41,0.69373527]
[1767609586927,3.33090941,135.43,135.41,0.69373527]
[1767609587368,0.63963009,135.41,135.38,0.69373527]
[1767609587566,3.27090942,135.4,135.38,0.69373527]
[1767609587768,3.9705395,135.41,135.38,0.69373527]
[1767609588976,3.33090941,135.4,135.38,0.69373527]
[1767609589485,3.33090941,135.41,135.38,0.69373527]
[1767609590291,8.08924003,135.42,135.38,14.15373527]
[1767609590467,3.33090941,135.41,135.38,14.15373527]
[1767609590882,3.33090941,135.41,135.39,0.69373527]
[1767609591800,8.08924003,135.42,135.39,0.69373527]
[1767609592091,3.33090941,135.41,135.39,0.69373527]
[1767609592474,11.42014944,135.42,135.39,0.69373527]
[1767609593293,10.71552131,135.42,135.39,0.69373527]
[1767609596299,3.33090941,135.42,135.39,0.69373527]
[1767609596904,3.33090941,135.41,135.39,0.69373527]
[1767609597999,8.04946485,135.42,135.39,0.69373527]
[1767609598306,3.33090941,135.41,135.39,0.69373527]
[1767609600784,4.00850961,135.41,135.38,13.46]
[1767609601185,3.33090941,135.41,135.38,14.15437522]
[1767609601891,11.43794609,135.42,135.38,14.15437522]
[1767609602085,4.05344297,135.42,135.38,14.15437522]
[1767609602505,2.85423272,135.42,135.38,14.15437522]
[1767609602801,2.13169916,135.41,135.38,14.15437522]
[1767609603320,9.5167419,135.41,135.38,14.15437522]
[1767609603620,2.13169916,135.4,135.38,14.15437522]
[1767609606796,0.72051525,135.38,135.35,54.2463761]
[1767609607118,2.10427678,135.37,135.35,54.2463761]
[1767609608189,2.13169916,135.36,135.33,0.69437522]
[1767609608512,2.13169916,135.36,135.33,14.15437522]
[1767609610012,2.09660756,135.36,135.33,14.15437522]
[1767609610617,8.00986688,135.37,135.33,14.15437522]
[1767609610819,2.75527071,135.35,135.33,13.46]
[1767609610987,2.75527071,135.35,135.32,0.69437522]
[1767609611388,2.13169916,135.35,135.32,0.69437522]
[1767609611603,2.13169916,135.35,135.32,14.15437522]
[1767609612393,10.24200998,135.36,135.32,14.15437522]
[1767609612892,2.13169916,135.35,135.32,14.15437522]
[1767609614511,2.75230325,135.35,135.32,14.15437522]
[1767609616020,10.14082642,135.35,135.32,14.15437522]
[1767609616224,8.00912726,135.35,135.32,13.46]
[1767609616399,2.13169916,135.34,135.31,0.89437522]
[1767609616595,2.13169916,135.32,135.31,0.2]
[1767609616897,2.07169917,135.32,135.31,0.2]
[1767609617101,2.01169918,135.32,135.31,0.2]
[1767609617313,2.75331235,135.33,135.31,0.2]
[1767609620495,0.62161319,135.33,135.31,0.2]
[1767609620695,2.75331235,135.33,135.31,0.2]
[1767609621717,0.72253356,135.34,135.31,0.2]
[1767609621925,2.85423272,135.34,135.31,0.2]
[1767609622323,2.13169916,135.33,135.31,0.2]
[1767609623625,2.13169916,135.33,135.31,0.89437522]
[1767609624442,2.85423272,135.34,135.31,0.89437522]
[1767609625226,2.13169916,135.34,135.31,0.89437522]
[1767609625825,2.75230325,135.34,135.31,0.89437522]
[1767609627324,10.14125664,135.34,135.31,0.89437522]
[1767609628037,2.85321342,135.33,135.31,0.2]
[1767609628704,2.13169916,135.34,135.31,0.89437522]
[1767609630533,2.75230325,135.34,135.31,0.89437522]
[1767609633737,0.62060409,135.34,135.31,0.89437522]
[1767609634238,2.75230325,135.34,135.31,0.89437522]
[1767609636337,0.62060409,135.34,135.31,0.89437522]
[1767609636543,2.75230325,135.34,135.31,0.89437522]
[1767609638820,2.13169916,135.33,135.31,0.89437522]
[1767609639233,10.1411442,135.34,135.31,0.89437522]
[1767609639917,2.13169916,135.35,135.32,0.67779797]
[1767609640117,0.7215539,135.38,135.34,0.67779797]
[1767609640344,2.85325306,135.39,135.34,0.67779797]
[1767609640542,0.7215539,135.39,135.35,0.67779797]
[1767609640914,2.85325306,135.39,135.35,0.67779797]
[1767609641344,10.23935995,135.39,135.35,0.67779797]
[1767609645026,2.75327311,135.4,135.36,0.67779797]
[1767609645328,2.75327311,135.4,135.36,14.13779797]
[1767609645537,2.13169916,135.39,135.36,14.13779797]
[1767609645736,2.85225326,135.39,135.36,14.13779797]
[1767609646128,2.13169916,135.39,135.36,14.13779797]
[1767609646540,2.75327311,135.39,135.36,14.13779797]
[1767609647035,0.62157395,135.39,135.36,14.13779797]
[1767609647623,2.13169916,135.38,135.34,16.46640248]
[1767609647941,2.13169916,135.36,135.34,8.4]
[1767609648138,2.13169916,135.36,135.33,14.13779797]
[1767609648139,2.85127336,135.36,135.33,14.13779797]
[1767609648932,2.85127336,135.36,135.33,0.67779797]
[1767609649531,0.7195742,135.36,135.33,0.67779797]
[1767609649726,2.85127336,135.36,135.33,0.67779797]
[1767609656771,0.7195742,135.36,135.33,0.67779797]
[1767609657849,10.19936059,135.37,135.33,0.67779797]
[1767609658555,0.68027951,135.38,135.34,0.70287493]
[1767609658857,0.68027951,135.38,135.35,0.70287493]
[1767609659049,2.81197867,135.38,135.35,0.70287493]
[1767609659252,0.6624356,135.37,135.34,14.16287493]
[1767609660362,2.81180023,135.36,135.32,0.70287493]
[1767609660561,2.81180023,135.36,135.33,13.46]
[1767609661662,2.81180023,135.36,135.33,14.13159976]
[1767609664566,4.01348967,135.36,135.33,14.13159976]
[1767609665268,0.70986521,135.39,135.34,0.67159976]
[1767609665774,3.96653435,135.38,135.34,0.67159976]
[1767609665955,0.70909802,135.37,135.33,13.46]
[1767609666153,0.70909802,135.37,135.34,0.67159976]
[1767609666368,3.96653435,135.38,135.34,0.67159976]
[1767609666558,11.35324503,135.38,135.34,0.67159976]
[1767609667862,3.3333886,135.37,135.34,0.67159976]
[1767609669818,3.96729387,135.36,135.33,0.67159976]
[1767609669978,3.96729387,135.36,135.33,14.13159976]
[1767609670411,3.96729387,135.36,135.33,0.67159976]
[1767609671074,0.63390527,135.36,135.33,0.67159976]
[1767609671274,3.96729387,135.36,135.33,0.67159976]
[1767609672201,4.04173469,135.35,135.32,14.13159976]
[1767609675306,3.3333886,135.35,135.33,0.67159976]
[1767609676002,0.70986521,135.36,135.33,0.67159976]
[1767609676494,4.04325381,135.36,135.33,0.67159976]
[1767609679417,4.04325381,135.37,135.33,0.67159976]
[1767609679623,3.96653435,135.36,135.33,0.67159976]
[1767609679805,0.70909802,135.35,135.32,21.52138536]
[1767609680111,0.70909802,135.35,135.32,0.52138536]
[1767609681823,0.70909802,135.35,135.32,7.91117096]
[1767609685132,0.70909802,135.35,135.32,0.52138536]
[1767609685803,0.70909802,135.35,135.32,0.67159976]
[1767609687720,0.70986521,135.35,135.31,21.05034511]
[1767609688126,0.70986521,135.35,135.31,21.72194487]
[1767609688304,0.70986521,135.35,135.32,0.67159976]
[1767609688504,0.70986521,135.35,135.31,21.05034511]
[1767609689214,0.70986521,135.35,135.32,0.67159976]
[1767609698310,0.72130697,135.32,135.31,0.2]
[1767609698641,3.3333886,135.33,135.28,15.79184842]
[1767609699013,3.3333886,135.32,135.29,0.69325129]
[1767609700739,3.81170241,135.33,135.29,0.69325129]
[1767609701520,0.47452067,135.31,135.28,0.69325129]
[1767609701719,3.80790927,135.31,135.28,0.69325129]
[1767609703419,3.80790927,135.31,135.27,0.89325129]
[1767609703635,3.4361438,135.3,135.27,0.89325129]
[1767609704348,3.80419162,135.29,135.27,0.2]
[1767609704653,0.47080302,135.29,135.27,0.2]
[1767609704834,3.3333886,135.28,135.27,0.2]
[1767609705029,0.47080302,135.29,135.27,0.2]
[1767609705348,3.80419162,135.29,135.27,0.2]
[1767609705525,3.43982428,135.28,135.26,0.2]
[1767609710345,0.10643568,135.28,135.26,0.2]